bitfinex/quotes_BTCUSD_20241223
["timestamp","ask_amount","ask_price","bid_price","bid_amount"]
[1734958428876,0.62936819,96392.0,96391.0,3.9e-07]
[1734958429076,0.207537,96368.0,96349.0,0.207578]
[1734958429274,0.12698632,96367.0,96349.0,5.318e-05]
[1734958429502,0.207547,96364.0,96350.0,0.207576]
[1734958429704,0.20755,96362.0,96350.0,0.207576]
[1734958429918,0.10398632,96361.0,96350.0,0.207576]
[1734958430531,0.10398632,96361.0,96354.0,0.207567]
[1734958430763,0.10398632,96361.0,96351.0,0.207573]
[1734958430956,0.10398632,96361.0,96355.0,0.207565]
[1734958431187,0.10398632,96361.0,96351.0,0.207573]
[1734958431800,0.10398632,96361.0,96351.0,0.415146]
[1734958432001,0.10398632,96361.0,96351.0,0.207573]
[1734958432205,0.207555,96360.0,96350.0,0.09164558]
[1734958432388,0.10398632,96359.0,96350.0,0.00994558]
[1734958432589,0.10398632,96359.0,96350.0,0.00894558]
[1734958432965,0.10398632,96359.0,96355.0,0.002]
[1734958433377,0.10398632,96359.0,96351.0,0.207574]
[1734958434005,0.10398632,96359.0,96350.0,0.01094558]
[1734958434208,0.10398632,96359.0,96350.0,0.00894558]
[1734958434585,0.10398632,96359.0,96351.0,0.002]
[1734958434974,0.10398632,96359.0,96352.0,0.207572]
[1734958435456,0.10398632,96359.0,96351.0,0.002]
[1734958435832,0.10398632,96359.0,96350.0,0.00894558]
[1734958436213,0.10398632,96359.0,96350.0,0.01094558]
[1734958436562,0.207559,96358.0,96350.0,0.01094558]
[1734958436773,0.10398632,96357.0,96350.0,0.01094558]
[1734958437409,0.10398632,96357.0,96351.0,0.0068641]
[1734958439562,0.10398632,96357.0,96351.0,0.00781975]
[1734958439973,0.10398632,96357.0,96351.0,0.00481975]
[1734958440179,0.10398632,96357.0,96351.0,0.00681975]
[1734958440600,0.10398632,96357.0,96352.0,0.207572]
[1734958441079,0.10398632,96357.0,96353.0,0.00481613]
[1734958442237,0.10398632,96357.0,96354.0,0.207567]
[1734958442441,0.10398632,96357.0,96353.0,0.00481613]
[1734958443263,0.10398632,96357.0,96353.0,0.00581613]
[1734958443877,0.10398632,96357.0,96353.0,0.00481613]
[1734958444629,0.10398632,96357.0,96354.0,0.207567]
[1734958445129,0.10398632,96357.0,96355.0,0.00033605]
[1734958445471,0.10398632,96357.0,96354.0,0.207567]
[1734958445893,0.10698632,96357.0,96353.0,0.00447577]
[1734958446100,0.10698632,96357.0,96351.0,0.0001714]
[1734958446325,0.10398632,96357.0,96352.0,0.207572]
[1734958446674,0.10698632,96357.0,96352.0,0.207572]
[1734958447017,0.10398632,96357.0,96352.0,0.207572]
[1734958447242,0.10398632,96357.0,96356.0,0.207563]
[1734958447461,0.207523,96375.0,96351.0,0.0001714]
[1734958447462,0.207517,96378.0,96364.0,0.207545]
[1734958447643,0.10398632,96370.0,96364.0,0.207545]
[1734958448248,0.10398632,96370.0,96359.0,0.05564558]
[1734958448467,0.10398632,96370.0,96360.0,0.207554]
[1734958448667,0.10398632,96370.0,96360.0,0.20787928]
[1734958448840,0.10398632,96370.0,96364.0,0.207546]
[1734958449258,0.10398632,96370.0,96365.0,0.00031451]
[1734958450126,0.10398632,96370.0,96366.0,0.207542]
[1734958450294,0.10398632,96370.0,96365.0,0.00031451]
[1734958450494,0.10398632,96370.0,96367.0,0.0003102]
[1734958450636,0.10398632,96370.0,96366.0,0.00031236]
[1734958450835,0.10398632,96370.0,96368.0,0.00030805]
[1734958451060,0.10398632,96370.0,96367.0,0.0003102]
[1734958451259,0.10398632,96370.0,96365.0,0.002]
[1734958451668,0.10398632,96370.0,96366.0,0.0047861]
[1734958452279,0.41507,96369.0,96366.0,0.0047861]
[1734958452479,0.207539,96367.0,96366.0,0.00447374]
[1734958452717,0.207557,96359.0,96354.0,0.01027711]
[1734958452926,0.20755,96363.0,96351.0,0.0001714]
[1734958452927,0.10398632,96358.0,96351.0,0.0001714]
[1734958453122,0.207567,96355.0,96351.0,0.0001714]
[1734958453327,0.20757,96353.0,96352.0,0.00481636]
[1734958453475,0.31155632,96353.0,96352.0,0.00447385]
[1734958453682,0.31155632,96353.0,96351.0,0.0001714]
[1734958453913,0.10398632,96352.0,96351.0,0.0001714]
[1734958456176,0.10498632,96352.0,96351.0,0.0001714]
[1734958456598,0.10398632,96352.0,96351.0,0.0001714]
[1734958457004,0.10598632,96352.0,96351.0,0.0001714]
[1734958457226,0.17885445,96352.0,96351.0,0.0001714]
[1734958457426,0.26038632,96352.0,96351.0,0.0001714]
[1734958458034,0.35144074,96352.0,96351.0,0.0001714]
[1734958458239,0.38186029,96352.0,96351.0,0.0001714]
[1734958458442,0.38186029,96352.0,96351.0,0.0041714]
[1734958458716,0.48584661,96352.0,96351.0,0.0041714]
[1734958458991,0.38186029,96352.0,96351.0,0.0001714]
[1734958459494,0.38186029,96352.0,96351.0,0.0031714]
[1734958459495,0.34944074,96352.0,96351.0,0.0031714]
[1734958459694,0.38183922,96352.0,96351.0,0.0031714]
[1734958459895,0.73582554,96352.0,96351.0,0.0001714]
[1734958460076,0.73582554,96352.0,96351.0,0.0011714]
[1734958461958,0.73582554,96352.0,96351.0,0.0001714]
[1734958462788,0.73682554,96352.0,96351.0,0.0001714]
[1734958463348,0.73582554,96352.0,96351.0,0.0001714]
[1734958463873,0.63183922,96352.0,96351.0,0.0001714]
[1734958464823,0.63383922,96352.0,96351.0,0.0001714]
[1734958465029,0.64366088,96352.0,96351.0,0.0001714]
[1734958465270,0.64166088,96352.0,96351.0,0.0001714]
[1734958465683,0.64266088,96352.0,96351.0,0.0001714]
[1734958465854,0.36405442,96350.0,96349.0,5.8e-07]
[1734958466076,0.284551,96315.0,96314.0,0.0001714]
[1734958466284,0.43999242,96315.0,96314.0,0.00070387]
[1734958466762,0.41153732,96315.0,96314.0,0.00070387]
[1734958467441,0.75259174,96315.0,96314.0,0.00070387]
[1734958468563,0.75359174,96315.0,96314.0,0.00770387]
[1734958468734,0.75359174,96315.0,96314.0,0.01170387]
[1734958469111,0.75259174,96315.0,96314.0,0.00470387]
[1734958469320,0.85757806,96315.0,96314.0,0.00770387]
[1734958469516,0.85757806,96315.0,96314.0,0.00970387]
[1734958469862,0.8788901,96315.0,96314.0,0.00270387]
[1734958470065,0.8818901,96315.0,96314.0,0.00070387]
[1734958470564,0.7828901,96315.0,96314.0,0.00070387]
[1734958470792,0.6890609,96315.0,96314.0,0.00070387]
[1734958471002,0.7890609,96315.0,96314.0,0.00070387]
[1734958471132,0.7850609,96315.0,96314.0,0.00070387]
[1734958471562,0.6880609,96315.0,96314.0,0.00070387]
[1734958471768,0.79104722,96315.0,96314.0,0.00070387]
[1734958472223,0.79504722,96315.0,96314.0,0.00070387]
[1734958472639,0.79404722,96315.0,96314.0,0.00070387]
[1734958472847,0.79504722,96315.0,96314.0,0.00070387]
[1734958473269,0.79404722,96315.0,96314.0,0.00070387]
[1734958473469,0.78804722,96315.0,96314.0,0.00070387]
[1734958473677,0.68500796,96315.0,96314.0,0.00070387]
[1734958474861,0.69400796,96315.0,96314.0,0.00170387]
[1734958475063,0.68500796,96315.0,96314.0,0.00070387]
[1734958475237,0.78500796,96315.0,96314.0,0.00070387]
[1734958475470,0.68800796,96315.0,96314.0,0.00070387]
[1734958475799,0.78800796,96315.0,96314.0,0.00070387]
[1734958476752,0.81642019,96315.0,96314.0,0.00070387]
[1734958476978,0.71642019,96315.0,96314.0,0.00070387]
[1734958477180,0.81642019,96315.0,96314.0,0.00070387]
[1734958477417,0.71642019,96315.0,96314.0,0.00070387]
[1734958477835,0.78800796,96315.0,96314.0,0.00070387]
[1734958478046,0.69695354,96315.0,96314.0,0.00070387]
[1734958478250,0.59695354,96315.0,96314.0,0.00070387]
[1734958478456,0.69695354,96315.0,96314.0,0.00070387]
[1734958478680,0.69395354,96315.0,96314.0,0.00070387]
[1734958478882,0.69693986,96315.0,96314.0,0.00070387]
[1734958479101,0.80093986,96315.0,96261.0,0.15]
[1734958479312,0.207686,96299.0,96293.0,0.05783146]
[1734958479512,0.10398632,96298.0,96295.0,9.93e-05]
[1734958480090,0.20769,96297.0,96296.0,0.00642876]
[1734958480318,0.31167632,96297.0,96295.0,9.93e-05]
[1734958480512,0.10398632,96296.0,96295.0,9.93e-05]
[1734958481732,0.10498632,96296.0,96295.0,9.93e-05]
[1734958487654,0.10398632,96296.0,96295.0,0.0040993]
[1734958487815,0.10398632,96296.0,96295.0,0.0120993]
[1734958488022,0.10498632,96296.0,96295.0,0.0120993]
[1734958489290,0.10498632,96296.0,96295.0,0.012185]
[1734958497150,0.10398632,96296.0,96295.0,0.000185]
[1734958497531,0.10398632,96296.0,96295.0,0.004185]
[1734958498031,0.10498632,96296.0,96295.0,0.012185]
[1734958501584,0.10515792,96296.0,96295.0,0.012185]
[1734958502549,0.0011716,96296.0,96295.0,0.02113058]
[1734958502749,0.0011716,96296.0,96295.0,0.10906716]
[1734958502978,0.0011716,96296.0,96295.0,0.15056708]
[1734958503337,0.0011716,96296.0,96295.0,0.35826208]
[1734958503536,0.0011716,96296.0,96295.0,0.35722373]
[1734958503808,0.0001716,96296.0,96295.0,0.35322373]
[1734958504155,0.0011716,96296.0,96295.0,0.36222373]
[1734958504360,0.0011716,96296.0,96295.0,0.34922373]
[1734958504709,0.0041716,96296.0,96295.0,0.34922373]
[1734958504853,0.0071716,96296.0,96295.0,0.34922373]
[1734958505504,0.0031716,96296.0,96295.0,0.69208111]
[1734958505848,0.002,96296.0,96295.0,0.69208111]
[1734958506250,0.004,96296.0,96295.0,0.70219056]
[1734958506487,0.004,96296.0,96295.0,0.70265594]
[1734958506690,0.002,96296.0,96295.0,0.70265594]
[1734958507112,0.023,96332.0,96314.0,0.00894558]
[1734958507355,0.10398632,96331.0,96322.0,0.00894558]
[1734958507553,0.10398632,96331.0,96328.0,0.00894558]
[1734958507890,0.0793,96342.0,96330.0,0.00894558]
[1734958508100,0.10398632,96341.0,96330.0,0.00894558]
[1734958508298,0.10398632,96341.0,96331.0,0.00629015]
[1734958508514,0.10398632,96341.0,96332.0,0.21656058]
[1734958508726,0.10451797,96341.0,96332.0,0.21656058]
[1734958508950,0.10451797,96341.0,96333.0,0.00628895]
[1734958509377,0.10451797,96341.0,96334.0,0.207611]
[1734958509585,0.10451797,96341.0,96335.0,0.00626081]
[1734958510004,0.10451797,96341.0,96336.0,0.00037699]
[1734958510405,0.10451797,96341.0,96332.0,0.21656058]
[1734958510632,0.10451797,96341.0,96337.0,0.0062622]
[1734958510830,0.10451797,96341.0,96334.0,0.002]
[1734958511055,0.10451797,96341.0,96338.0,0.0062629]
[1734958511235,0.2076,96339.0,96336.0,0.002]
[1734958511433,0.31158832,96338.0,96336.0,0.002]
[1734958512692,0.31158832,96338.0,96336.0,0.006]
[1734958513048,0.10398632,96338.0,96336.0,0.006]
[1734958513453,0.10398632,96338.0,96336.0,0.004]
[1734958513876,0.10415792,96338.0,96336.0,0.004]
[1734958514084,0.10415792,96338.0,96336.0,0.211605]
[1734958514291,0.10415792,96338.0,96337.0,0.00615045]
[1734958515838,0.10415792,96338.0,96337.0,0.01015045]
[1734958516359,0.10415792,96338.0,96337.0,0.01215045]
[1734958519173,0.09915792,96338.0,96337.0,0.01215045]
[1734958519410,0.023,96346.0,96337.0,0.01215045]
[1734958519626,0.31157332,96345.0,96337.0,0.01224975]
[1734958519816,0.207589,96344.0,96337.0,0.0060993]
[1734958520136,0.207593,96342.0,96337.0,0.0060993]
[1734958520344,0.10398632,96341.0,96337.0,0.0040993]
[1734958520646,0.10398632,96341.0,96338.0,0.00611716]
[1734958521934,0.10398632,96341.0,96338.0,0.00811716]
[1734958522163,0.10398632,96341.0,96338.0,0.00611716]
[1734958522534,0.0001714,96349.0,96348.0,0.00894558]
[1734958522734,0.0001714,96349.0,96348.0,0.08404558]
[1734958522993,0.0001714,96349.0,96348.0,0.09120745]
[1734958523752,0.0001714,96349.0,96348.0,0.09220745]
[1734958524180,0.0001714,96349.0,96348.0,0.10151801]
[1734958524381,0.0001714,96349.0,96348.0,0.10551801]
[1734958524541,0.0011714,96349.0,96348.0,0.10151801]
[1734958524856,0.0011714,96349.0,96348.0,0.10151798]
[1734958525061,0.0041714,96349.0,96348.0,0.10151798]
[1734958527069,0.0041714,96349.0,96348.0,0.00612413]
[1734958527278,0.10815772,96349.0,96348.0,0.00612413]
[1734958527484,0.207602,96338.0,96337.0,9.93e-05]
[1734958527860,0.43284852,96338.0,96337.0,0.00625233]
[1734958528016,0.43284852,96338.0,96337.0,9.93e-05]
[1734958528219,0.41208832,96338.0,96337.0,9.93e-05]
[1734958529039,0.41308832,96338.0,96337.0,0.0070993]
[1734958530635,0.41308832,96338.0,96337.0,0.0110993]
[1734958530842,0.41208832,96338.0,96337.0,0.0040993]
[1734958531091,0.41208832,96338.0,96337.0,0.0080993]
[1734958531424,0.41208832,96338.0,96337.0,0.0040993]
[1734958531708,0.41308832,96338.0,96337.0,0.0120993]
[1734958531875,0.41308832,96338.0,96337.0,0.0040993]
[1734958532070,0.39008832,96338.0,96337.0,0.0040993]
[1734958532277,0.41308832,96338.0,96337.0,0.0050993]
[1734958532614,0.41208832,96338.0,96337.0,0.0010993]
[1734958532815,0.41308832,96338.0,96337.0,0.0100993]
[1734958533153,0.41308832,96338.0,96337.0,0.0090993]
[1734958534331,0.001,96338.0,96337.0,0.0120993]
[1734958535317,0.001,96338.0,96337.0,0.02789745]
[1734958535490,0.001,96338.0,96337.0,0.02489745]
[1734958535931,0.001,96338.0,96337.0,0.02889745]
[1734958536494,0.001,96338.0,96337.0,0.02489745]
[1734958536954,0.004,96338.0,96337.0,0.01589745]
[1734958537165,0.003,96338.0,96337.0,0.01589745]
[1734958537426,0.007,96338.0,96337.0,0.01689745]
[1734958538351,0.207582,96348.0,96337.0,0.01589745]
[1734958538485,0.007,96338.0,96337.0,0.01698315]
[1734958538690,0.01,96338.0,96337.0,0.00913058]
[1734958538940,0.01,96338.0,96337.0,0.01598315]
[1734958539457,0.007,96338.0,96337.0,0.01598315]
[1734958539612,0.008,96338.0,96337.0,0.01598315]
[1734958540221,0.0001714,96342.0,96337.0,0.01702108]
[1734958540425,0.0001714,96342.0,96341.0,0.00894558]
[1734958540978,0.0001714,96342.0,96341.0,0.01580313]
[1734958542065,0.0061714,96342.0,96341.0,0.01580313]
[1734958542879,0.0081714,96342.0,96341.0,0.01580313]
[1734958546437,0.0081714,96342.0,96341.0,0.01759513]
[1734958547240,0.0081714,96342.0,96341.0,0.02059817]
[1734958548221,0.0081714,96342.0,96341.0,0.01165259]
[1734958548456,0.0081714,96342.0,96339.0,0.00894558]
[1734958548922,0.0081714,96342.0,96340.0,0.01165435]
[1734958549423,0.0061714,96342.0,96340.0,0.01165435]
[1734958549680,0.0081714,96342.0,96340.0,0.01165435]
[1734958550177,0.0061714,96342.0,96340.0,0.02059993]
[1734958550412,0.0021714,96342.0,96340.0,0.02059993]
[1734958550732,0.10398632,96341.0,96340.0,0.01165435]
[1734958551209,0.415196,96340.0,96337.0,0.000185]
[1734958551471,0.207602,96338.0,96337.0,0.000185]
[1734958551724,0.10398632,96338.0,96337.0,0.000185]
[1734958552206,0.10398632,96338.0,96337.0,0.01184137]
[1734958552434,0.10398632,96338.0,96337.0,0.000185]
[1734958552666,0.10398632,96338.0,96337.0,0.01184137]
[1734958552898,0.10398632,96338.0,96337.0,0.000185]
[1734958553648,0.10498632,96338.0,96337.0,0.000185]
[1734958554128,0.10398632,96338.0,96337.0,0.01184137]
[1734958554336,0.10398632,96338.0,96337.0,0.000185]
[1734958554490,0.10398632,96338.0,96337.0,0.002185]
[1734958554692,0.10398632,96338.0,96337.0,0.000185]
[1734958555129,0.10998632,96338.0,96337.0,0.01286603]
[1734958555332,0.10398632,96338.0,96337.0,0.000185]
[1734958555555,0.10398632,96338.0,96337.0,0.002185]
[1734958556005,0.10598632,96338.0,96337.0,0.000185]
[1734958556882,0.10398632,96338.0,96337.0,0.000185]
[1734958557356,0.10998632,96338.0,96337.0,0.002185]
[1734958557533,0.10398632,96338.0,96337.0,0.001185]
[1734958557735,0.10398632,96338.0,96337.0,0.002185]
[1734958558004,0.11098632,96338.0,96337.0,0.002185]
[1734958558197,0.11098632,96338.0,96337.0,0.001185]
[1734958558376,0.11898632,96338.0,96337.0,0.002185]
[1734958558539,0.11898632,96338.0,96337.0,0.001185]
[1734958559130,0.12198632,96338.0,96337.0,0.001185]
[1734958559300,0.11898632,96338.0,96337.0,0.001185]
[1734958559710,0.12198632,96338.0,96337.0,0.001185]
[1734958560227,0.11898632,96338.0,96337.0,0.001185]
[1734958560425,0.10398632,96338.0,96337.0,0.000185]
[1734958560629,0.11698632,96338.0,96337.0,0.001185]
[1734958562952,0.22258632,96338.0,96337.0,0.001185]
[1734958563219,0.47258632,96338.0,96337.0,0.001185]
[1734958563373,0.51928632,96338.0,96337.0,0.001185]
[1734958563574,0.64275006,96338.0,96337.0,0.001185]
[1734958563815,0.55169564,96338.0,96337.0,0.001185]
[1734958564135,0.622878,96327.0,96312.0,0.02109112]
[1734958564290,0.20838632,96326.0,96312.0,0.02162277]
[1734958564489,0.207655,96314.0,96313.0,0.00971239]
[1734958564716,0.31164132,96314.0,96313.0,0.00971239]
[1734958564920,0.31164132,96314.0,96312.0,0.02162277]
[1734958565494,0.31164132,96314.0,96312.0,0.00053165]
[1734958565894,0.18708632,96313.0,96312.0,0.00053165]
[1734958566724,0.18708632,96313.0,96312.0,0.00153165]
[1734958567546,0.18808632,96313.0,96312.0,0.00153165]
[1734958567953,0.18708632,96313.0,96312.0,0.00153165]
[1734958568168,0.18808632,96313.0,96312.0,0.00153165]
[1734958568299,0.18708632,96313.0,96312.0,0.00153165]
[1734958568496,0.18708632,96313.0,96312.0,0.00053165]
[1734958568761,0.18808632,96313.0,96312.0,0.00553165]
[1734958569525,0.18808632,96313.0,96312.0,0.00499916]
[1734958569760,0.18808632,96313.0,96304.0,0.00894558]
[1734958569993,0.207658,96312.0,96304.0,0.0091054]
[1734958570191,0.207673,96305.0,96304.0,0.0091054]
[1734958570390,0.207673,96305.0,96304.0,0.00015982]
[1734958570796,0.207673,96305.0,96304.0,0.0091054]
[1734958571417,0.213673,96305.0,96304.0,0.0101054]
[1734958571617,0.213673,96305.0,96304.0,0.00115982]
[1734958571918,0.213673,96305.0,96304.0,0.00215982]
[1734958572141,0.213673,96305.0,96304.0,0.0111054]
[1734958572567,0.213673,96305.0,96304.0,0.0101054]
[1734958572767,0.215673,96305.0,96304.0,0.0101054]
[1734958573454,0.008,96305.0,96304.0,0.0101054]
[1734958574070,0.008,96305.0,96304.0,0.05954358]
[1734958574284,0.008,96305.0,96304.0,0.05998955]
[1734958574496,0.008,96305.0,96304.0,0.06994445]
[1734958574883,0.006,96305.0,96304.0,0.06994445]
[1734958575084,0.207641,96320.0,96319.0,0.00894558]
[1734958575263,0.207631,96325.0,96319.0,0.00894558]
[1734958575467,0.207623,96329.0,96325.0,0.00894558]
[1734958575820,0.207626,96327.0,96325.0,0.00894558]
[1734958576746,0.10398632,96328.0,96325.0,0.00894558]
[1734958577215,0.207626,96327.0,96325.0,0.00894558]
[1734958578176,0.10398632,96328.0,96325.0,0.00894558]
[1734958578396,0.10398632,96328.0,96325.0,0.01194558]
[1734958578593,0.207626,96327.0,96325.0,0.01194558]
[1734958578795,0.0756,96326.0,96325.0,0.01494558]
[1734958579254,0.0756,96326.0,96325.0,0.01794558]
[1734958579784,0.0756,96326.0,96325.0,0.01494558]
[1734958579938,0.0756,96326.0,96325.0,0.01894558]
[1734958580340,0.0756,96326.0,96325.0,0.01294558]
[1734958580869,0.0756,96326.0,96325.0,0.01894558]
[1734958580999,0.0756,96326.0,96325.0,0.01294558]
[1734958581201,0.0756,96326.0,96325.0,0.01994558]
[1734958581461,0.0766,96326.0,96325.0,0.01594558]
[1734958581844,0.001,96326.0,96325.0,0.01894558]
[1734958582442,0.001,96326.0,96325.0,0.01594558]
[1734958582820,0.001,96326.0,96325.0,0.01994558]
[1734958583903,0.18068632,96326.0,96325.0,0.011]
[1734958585928,0.10498632,96326.0,96325.0,0.011]
[1734958586146,0.001,96326.0,96325.0,0.01994558]
[1734958586661,0.001,96326.0,96325.0,0.02003128]
[1734958593500,0.01726045,96326.0,96325.0,0.02003128]
[1734958596277,0.01726045,96326.0,96325.0,0.02971851]
[1734958596695,0.01726045,96326.0,96325.0,0.02003128]
[1734958600229,0.22724677,96326.0,96325.0,0.0110857]
[1734958600436,0.53930576,96326.0,96325.0,0.0110857]
[1734958601236,0.53830576,96326.0,96325.0,8.57e-05]
[1734958601438,0.55945957,96326.0,96325.0,0.0010857]
[1734958601878,0.55945957,96326.0,96325.0,0.0020857]
[1734958602078,0.55945957,96326.0,96325.0,7e-07]
[1734958602079,0.76475589,96326.0,96325.0,7e-07]
[1734958603570,0.023,96317.0,96296.0,0.00903138]
[1734958603797,0.230673,96305.0,96296.0,8.58e-05]
[1734958603996,0.41065932,96305.0,96296.0,8.58e-05]
[1734958605356,0.41065932,96305.0,96304.0,0.00124552]
[1734958606586,0.41065932,96305.0,96304.0,0.00224552]
[1734958606790,0.41065932,96305.0,96304.0,0.00124552]
[1734958607145,0.41065932,96305.0,96304.0,0.00224552]
[1734958607347,0.41065932,96305.0,96304.0,0.00124552]
[1734958607593,0.41065932,96305.0,96304.0,0.00224552]
[1734958607792,0.41065932,96305.0,96304.0,0.00124552]
[1734958608002,0.42105109,96305.0,96304.0,0.00124552]
[1734958608212,0.42105109,96305.0,96304.0,0.00224552]
[1734958611273,0.4418682,96305.0,96304.0,0.00124552]
[1734958611641,0.4418682,96305.0,96304.0,0.00024552]
[1734958611770,0.4418682,96305.0,96304.0,0.00124552]
[1734958611980,0.4418682,96305.0,96304.0,0.00224552]
[1734958616924,0.42105109,96305.0,96304.0,0.00224552]
[1734958617263,0.42105109,96305.0,96304.0,0.00124552]
[1734958617403,0.42105109,96305.0,96304.0,0.00224552]
[1734958617866,0.42105109,96305.0,96304.0,0.00424552]
[1734958619809,0.42105109,96305.0,96304.0,0.00224552]
[1734958620017,0.42105109,96305.0,96304.0,0.00024552]
[1734958620281,0.0833,96325.0,96307.0,0.00894558]
[1734958620492,0.207645,96319.0,96317.0,0.00894558]
[1734958620694,0.207645,96319.0,96318.0,0.00894558]
[1734958622603,0.207634,96323.0,96318.0,0.00894558]
[1734958622817,0.207639,96321.0,96318.0,0.00894558]
[1734958623019,0.207643,96319.0,96318.0,0.00894558]
[1734958623262,0.207643,96319.0,96318.0,0.01394558]
[1734958623454,0.10398632,96320.0,96318.0,0.01094558]
[1734958623656,0.207643,96319.0,96318.0,0.00894558]
[1734958623787,0.207643,96319.0,96318.0,0.00994558]
[1734958623992,0.207643,96319.0,96318.0,0.01094558]
[1734958624219,0.207643,96319.0,96304.0,0.00024552]
[1734958624416,0.207643,96319.0,96305.0,0.207672]
[1734958624619,0.207643,96319.0,96305.0,0.21573692]
[1734958624819,0.207643,96319.0,96318.0,0.002]
[1734958626010,0.207643,96319.0,96318.0,0.003]
[1734958626419,0.207643,96319.0,96318.0,0.00246751]
[1734958627029,0.207643,96319.0,96318.0,0.00446751]
[1734958628911,0.31162932,96319.0,96318.0,0.00446751]
[1734958629346,0.33462932,96319.0,96318.0,0.00446751]
[1734958630204,0.41642932,96319.0,96318.0,0.00446751]
[1734958630376,0.207673,96305.0,96304.0,0.00024552]
[1734958630606,0.31165932,96305.0,96304.0,0.00024552]
[1734958631914,0.31265932,96305.0,96304.0,0.00524552]
[1734958633084,0.001,96305.0,96304.0,0.00024552]
[1734958633243,0.207662,96310.0,96304.0,0.0082637]
[1734958633441,0.207662,96310.0,96304.0,0.0132637]
[1734958633640,0.001,96305.0,96304.0,0.0132637]
[1734958633843,0.001,96305.0,96304.0,0.00924552]
[1734958634273,0.207662,96310.0,96304.0,0.00424552]
[1734958634469,0.207662,96310.0,96304.0,0.00524552]
[1734958634669,0.208662,96310.0,96304.0,0.00524552]
[1734958634952,0.208662,96310.0,96304.0,0.00024552]
[1734958635173,0.001,96305.0,96304.0,0.00524552]
[1734958635919,0.001,96305.0,96304.0,0.00824552]
[1734958636270,0.001,96305.0,96304.0,0.00524552]
[1734958636715,0.001,96305.0,96304.0,0.00924552]
[1734958636933,0.207662,96310.0,96304.0,0.00424552]
[1734958637132,0.207662,96310.0,96304.0,0.00924552]
[1734958637283,0.207673,96305.0,96304.0,0.00924552]
[1734958637519,0.31165932,96305.0,96304.0,0.00424552]
[1734958637689,0.31165932,96305.0,96304.0,0.00024552]
[1734958638318,0.31265932,96305.0,96304.0,0.00524552]
[1734958638911,0.31265932,96305.0,96304.0,0.00824552]
[1734958639532,0.31265932,96305.0,96304.0,0.00524552]
[1734958639747,0.31265932,96305.0,96304.0,0.00924552]
[1734958640853,0.001,96305.0,96304.0,0.00924552]
[1734958652763,0.208673,96305.0,96304.0,0.00924552]
[1734958655978,0.208673,96305.0,96304.0,0.00871303]
[1734958657564,0.208673,96305.0,96304.0,0.00879873]
[1734958661005,0.001,96305.0,96304.0,0.00879873]
[1734958661552,0.001,96305.0,96304.0,0.01876919]
[1734958663655,0.001,96305.0,96304.0,0.26138307]
[1734958663855,0.001,96305.0,96304.0,0.33854483]
[1734958665018,0.001,96305.0,96304.0,0.5837142]
[1734958665157,0.0001714,96318.0,96313.0,0.207654]
[1734958665360,0.0001714,96318.0,96314.0,0.00103816]
[1734958665560,0.0001714,96318.0,96314.0,0.00989768]
[1734958665951,0.0001714,96318.0,96315.0,0.415302]
[1734958666326,0.0001714,96318.0,96315.0,0.207651]
[1734958666472,0.0001714,96318.0,96317.0,0.09254513]
[1734958666675,0.0021714,96318.0,96317.0,0.09254513]
[1734958666870,0.0011714,96318.0,96317.0,0.09254513]
[1734958667751,0.0011714,96318.0,96315.0,0.3464687]
[1734958668148,0.0001714,96318.0,96315.0,0.5541197]
[1734958668402,0.0011714,96318.0,96315.0,0.3534687]
[1734958668597,0.0001714,96318.0,96315.0,0.5541197]
[1734958668775,0.0001714,96318.0,96317.0,0.004]
[1734958668976,0.0081714,96318.0,96317.0,0.004]
[1734958669125,0.0081714,96318.0,96316.0,0.09248521]
[1734958669327,0.0081714,96318.0,96317.0,0.00081508]
[1734958669641,0.0111714,96318.0,96317.0,0.00081508]
[1734958669847,0.0031714,96318.0,96317.0,0.00081508]
[1734958670047,0.0001714,96318.0,96317.0,0.00081508]
[1734958670638,0.0091714,96318.0,96317.0,0.00181508]
[1734958670834,0.0091714,96318.0,96317.0,0.001]
[1734958671037,0.0091714,96318.0,96317.0,0.00181508]
[1734958671265,0.0121714,96318.0,96317.0,0.00181508]
[1734958671826,0.0091714,96318.0,96317.0,0.00181508]
[1734958672369,0.0131714,96318.0,96317.0,0.00181508]
[1734958673568,0.0914714,96318.0,96317.0,0.00181508]
[1734958673772,0.0914714,96318.0,96317.0,0.001]
[1734958679383,0.0914714,96318.0,96317.0,0.00046751]
[1734958683462,0.0131714,96318.0,96317.0,0.00046751]
[1734958684289,0.0131714,96318.0,96317.0,0.00930473]
[1734958684507,0.0131714,96318.0,96317.0,0.00046751]
[1734958684702,0.0131714,96318.0,96317.0,0.00847965]
[1734958684909,0.0131714,96318.0,96317.0,0.00046751]
[1734958685136,0.0131714,96318.0,96317.0,0.00847965]
[1734958685337,0.0131714,96318.0,96317.0,0.00046751]
[1734958685547,0.0131714,96318.0,96317.0,0.00847965]
[1734958685919,0.0131714,96318.0,96317.0,0.00046751]
[1734958686869,0.0131714,96318.0,96317.0,0.00847965]
[1734958687115,0.0131714,96318.0,96317.0,0.00046751]
[1734958687361,0.0131714,96318.0,96317.0,0.00847965]
[1734958687604,0.0131714,96318.0,96317.0,0.00046751]
[1734958687841,0.0131714,96318.0,96317.0,0.00847965]
[1734958688084,0.0131714,96318.0,96317.0,0.00046751]
[1734958688288,0.0131714,96318.0,96317.0,0.00847965]
[1734958688432,0.0131714,96318.0,96317.0,0.00129259]
[1734958689658,0.0131714,96318.0,96317.0,0.00046751]
[1734958690920,0.0131714,96318.0,96317.0,0.00847965]
[1734958691446,0.0131714,96318.0,96317.0,0.00939043]
[1734958698743,0.0131714,96318.0,96317.0,0.35092715]
[1734958698924,0.0001714,96325.0,96317.0,0.35092715]
[1734958699142,0.0001714,96325.0,96318.0,0.207645]
[1734958699334,0.0001714,96325.0,96322.0,0.207636]
[1734958700561,0.0001714,96325.0,96323.0,0.52660442]
[1734958701631,0.0001714,96325.0,96324.0,0.34153672]
[1734958702308,0.0011714,96325.0,96324.0,0.34153672]
[1734958702590,0.0001714,96325.0,96324.0,0.34153672]
[1734958702821,0.0001714,96325.0,96324.0,0.52660442]
[1734958703044,0.0021714,96325.0,96324.0,0.52741441]
[1734958703869,0.0021714,96325.0,96324.0,0.34234671]
[1734958706460,0.0001714,96325.0,96324.0,0.34234671]
[1734958706668,0.0021714,96325.0,96324.0,0.34234671]
[1734958708131,0.0081714,96325.0,96324.0,0.34234671]
[1734958709561,0.0081714,96325.0,96324.0,0.35031311]
[1734958709970,0.0061714,96325.0,96324.0,0.35031311]
[1734958710832,0.0001714,96325.0,96324.0,0.35031311]
[1734958711283,0.0051714,96325.0,96324.0,0.35031311]
[1734958711479,0.0071714,96325.0,96324.0,0.35031311]
[1734958711866,0.0121714,96325.0,96324.0,0.35031311]